bitfinex/quotes_ETHUSD_20230113
["timestamp","ask_amount","ask_price","bid_price","bid_amount"]
[1673623606360,0.991,1418.1,1418.0,38.46399207]
[1673623606756,1e-08,1418.1,1418.0,38.46399207]
[1673623613523,3.60633273,1418.1,1418.0,38.44530101]
[1673623613720,5.373566,1418.1,1418.0,38.44530101]
[1673623613942,5.669566,1418.1,1418.0,38.44530101]
[1673623614146,12.721246,1418.1,1418.0,38.44530101]
[1673623615540,12.491246,1418.1,1418.0,38.44530101]
[1673623615692,12.491246,1418.1,1418.0,38.27862376]
[1673623616145,0.06600001,1418.1,1418.0,38.27862376]
[1673623616326,1e-08,1418.1,1418.0,38.27862376]
[1673623617203,1e-08,1418.1,1418.0,45.33080376]
[1673623618041,1e-08,1418.1,1418.0,52.38298376]
[1673623618998,1e-08,1418.1,1418.0,53.96998376]
[1673623619729,1e-08,1418.1,1418.0,65.39555987]
[1673623619948,1e-08,1418.1,1418.0,44.23901987]
[1673623620161,1e-08,1418.1,1418.0,41.61499906]
[1673623620473,1e-08,1418.1,1418.0,43.19399906]
[1673623620783,1e-08,1418.1,1418.0,45.81805273]
[1673623621168,1e-08,1418.1,1418.0,43.19399906]
[1673623621998,1e-08,1418.1,1418.0,39.85762376]
[1673623622938,1e-08,1418.1,1418.0,41.60703256]
[1673623624255,1e-08,1418.1,1418.0,44.2311159]
[1673623624478,1e-08,1418.1,1418.0,39.85762376]
[1673623625093,7.05168001,1418.1,1418.0,39.85762376]
[1673623625302,7.11768001,1418.1,1418.0,39.85762376]
[1673623625512,14.16936001,1418.1,1418.0,39.85762376]
[1673623626035,1.34100001,1418.1,1418.0,39.83893292]
[1673623626190,1.53410001,1418.1,1418.0,39.83893292]
[1673623626931,1e-08,1418.1,1418.0,39.83893292]
[1673623627143,1e-08,1418.1,1418.0,38.25993292]
[1673623628234,14.066,1418.2,1418.0,38.25993292]
[1673623628448,14.066,1418.2,1418.0,39.84093292]
[1673623628620,0.066,1418.2,1418.1,2.87766376]
[1673623628834,39.2401,1418.4,1418.1,2.87766376]
[1673623628835,3.0,1418.3,1418.1,2.87766376]
[1673623629082,3.0,1418.3,1418.2,1.574]
[1673623629237,14.066,1418.4,1418.2,2.885]
[1673623629456,14.066,1418.4,1418.2,3.3046]
[1673623629664,14.066,1418.4,1418.3,1.587]
[1673623631027,0.20414507,1418.5,1418.4,1.587]
[1673623631403,0.20414507,1418.5,1418.4,9.55019]
[1673623631715,0.20414507,1418.5,1418.4,19.07993045]
[1673623632032,0.20414507,1418.5,1418.4,21.79712191]
[1673623632201,0.20414507,1418.5,1418.4,14.74693191]
[1673623632407,0.20414507,1418.5,1418.4,12.9900471]
[1673623632666,0.20414507,1418.5,1418.4,21.78918799]
[1673623633028,0.20414507,1418.5,1418.4,21.78911153]
[1673623633272,0.20414507,1418.5,1418.4,20.0402371]
[1673623633657,0.20414507,1418.5,1418.4,12.9900471]
[1673623634655,0.20414507,1418.5,1418.4,20.0402371]
[1673623637975,0.1814413,1418.6,1418.4,20.0402371]
[1673623637976,0.1814413,1418.6,1418.5,1.52265517]
[1673623638232,0.79123841,1418.9,1418.6,2.5]
[1673623638233,0.054894,1418.9,1418.6,2.5]
[1673623638417,0.054894,1418.9,1418.8,1.579]
[1673623638594,0.054894,1418.9,1418.8,8.6272]
[1673623638810,0.054894,1418.9,1418.8,8.68386564]
[1673623639067,0.583594,1418.9,1418.8,15.45765451]
[1673623639389,0.054894,1418.9,1418.8,18.17484597]
[1673623640121,0.054894,1418.9,1418.8,15.45765451]
[1673623640335,0.054894,1418.9,1418.8,8.40945451]
[1673623640858,0.054894,1418.9,1418.8,1.36125451]
[1673623641012,16.640894,1418.9,1418.7,0.05666564]
[1673623641343,1.8038,1418.8,1418.6,15.73544564]
[1673623641557,1.8038,1418.8,1418.6,15.73573564]
[1673623642212,1.8038,1418.8,1418.6,8.68653564]
[1673623642430,0.5288,1418.8,1418.6,8.68653564]
[1673623644375,0.5288,1418.8,1418.7,8.6357]
[1673623644647,0.649594,1418.9,1418.7,15.74106564]
[1673623644957,0.649594,1418.9,1418.8,18.1814]
[1673623644958,0.054894,1418.9,1418.8,18.1814]
[1673623645115,0.054894,1418.9,1418.8,21.84439836]
[1673623645793,0.054894,1418.9,1418.8,23.42339836]
[1673623645969,28.06034454,1419.3,1418.8,23.42339836]
[1673623646165,28.06034454,1419.3,1419.2,3.162]
[1673623646166,0.066,1419.3,1419.2,3.162]
[1673623646372,0.066,1419.5,1419.3,2.5]
[1673623646639,0.19646765,1419.7,1419.4,21.13569]
[1673623646956,0.19646765,1419.7,1419.6,22.70769]
[1673623647211,1e-08,1419.7,1419.6,24.34335564]
[1673623647537,1e-08,1419.7,1419.6,37.27296192]
[1673623647688,1e-08,1419.7,1419.6,44.41396192]
[1673623647901,1e-08,1419.7,1419.6,33.6656292]
[1673623648278,1e-08,1419.7,1419.6,26.6213992]
[1673623648477,1e-08,1419.7,1419.6,30.22773192]
[1673623648636,1.0,1420.0,1419.6,30.22773192]
[1673623649018,1.0,1420.0,1419.8,7.04324]
[1673623649161,1.0,1420.0,1419.8,7.08118794]
[1673623649526,1.0,1420.0,1419.8,10.68552066]
[1673623649527,1.002,1420.0,1419.8,10.68552066]
[1673623649680,1.002,1420.0,1419.8,9.58118794]
[1673623649681,1.0,1420.0,1419.8,9.58118794]
[1673623649888,1.0,1420.0,1419.9,3.174]
[1673623649889,0.9,1420.0,1419.9,3.174]
[1673623650107,0.9,1420.0,1419.9,3.31684279]
[1673623650860,0.9,1420.0,1419.9,13.96591551]
[1673623651214,14.9009054,1420.4,1419.9,12.00324843]
[1673623651215,0.9009054,1420.4,1419.9,12.00324843]
[1673623651363,0.8349054,1420.4,1420.1,1.587]
[1673623651573,1.1166674,1420.4,1420.1,1.587]
[1673623651783,1.1166674,1420.4,1420.2,7.04126]
[1673623652049,1.1166674,1420.4,1420.3,8.62776]
[1673623652197,1.1166674,1420.4,1420.3,8.68442564]
[1673623652411,59.41057026,1421.3,1420.8,7.03826]
[1673623652626,0.066,1421.3,1421.0,7.03714]
[1673623652832,3.58246,1421.9,1421.0,7.03714]
[1673623652833,0.3709054,1421.8,1421.2,3.174]
[1673623653103,0.0027166,1422.1,1422.0,2.7936881]
[1673623653104,0.03,1422.1,1422.0,2.7936881]
[1673623653268,0.09355742,1422.8,1422.0,2.7936881]
[1673623653269,0.09355742,1422.8,1422.0,6.3212881]
[1673623653485,0.04355742,1422.8,1422.2,28.12464]
[1673623653697,1.80154135,1423.5,1422.2,28.12464]
[1673623653698,4.46902469,1424.1,1423.3,28.10368]
[1673623653886,4.46902469,1424.1,1423.1,0.06]
[1673623653887,2.59533436,1423.2,1423.1,0.06]
[1673623654094,0.02533436,1423.3,1422.6,7.09493]
[1673623654308,0.02533436,1423.3,1422.6,0.066]
[1673623654309,1.335,1423.1,1422.6,0.066]
[1673623654638,0.0835,1423.0,1422.4,0.066]
[1673623654802,10.4767,1423.0,1422.5,0.06108]
[1673623654959,17.174,1422.6,1422.0,10.2126881]
[1673623655172,17.174,1422.6,1422.0,10.21984767]
[1673623655173,8.0,1422.2,1422.0,10.21984767]
[1673623655435,14.5275,1422.1,1422.0,2.80084767]
[1673623655605,2.60273436,1422.1,1422.0,2.7936881]
[1673623655818,2.5,1422.0,1421.6,0.01915957]
[1673623656049,2.5,1422.0,1421.1,4.391]
[1673623656050,8.60648,1421.8,1421.1,0.01915957]
[1673623656277,8.60648,1421.8,1421.4,0.06113]
[1673623656278,5.1147,1421.7,1421.4,0.06113]
[1673623656431,3.5937,1421.7,1421.4,0.06113]
[1673623656643,0.5277,1421.7,1421.4,0.06113]
[1673623656904,0.5277,1421.7,1421.4,1.64813]
[1673623657068,0.5277,1421.7,1421.3,0.17903289]
[1673623657069,0.46022715,1421.7,1421.5,0.06112]
[1673623657286,0.23,1421.6,1421.3,0.05554002]
[1673623657521,0.5278,1421.5,1421.3,0.05554002]
[1673623657728,2.5,1421.4,1421.3,2e-08]
[1673623657958,7.6148,1421.4,1421.3,2e-08]
[1673623658174,9.2538,1421.4,1421.0,0.06114]
[1673623658321,2.3448,1421.3,1420.6,22.98730332]
[1673623658537,1.587,1421.1,1420.6,0.01915957]
[1673623658747,5.0036,1421.0,1420.4,4.90332908]
[1673623659072,5.0036,1421.0,1420.4,1.88416951]
[1673623659073,1.587,1420.8,1420.4,1.88416951]
[1673623659289,0.528,1420.7,1420.4,1.88416951]
[1673623659751,0.528,1420.7,1420.4,4.88416951]
[1673623659894,0.528,1420.7,1420.4,1.88416951]
[1673623659895,1.587,1420.6,1420.4,1.88416951]
[1673623660110,4.7011,1420.5,1420.4,0.27346301]
[1673623660696,10.2011,1420.5,1420.4,0.27346301]
[1673623660903,10.4971,1420.5,1420.4,0.27346301]
[1673623661117,3.5941,1420.5,1420.4,0.27346301]
[1673623661274,3.5941,1420.6,1420.4,0.27346301]
[1673623661489,3.066,1420.7,1420.4,0.27346301]
[1673623661847,0.3066,1420.6,1420.4,0.25480959]
[1673623662019,0.8347,1420.6,1420.4,0.25480959]
[1673623662275,44.4895252,1420.6,1420.4,0.25480959]
[1673623662522,5.5,1420.5,1420.4,0.19694703]
[1673623662686,5.566,1420.5,1420.4,0.19694703]
[1673623662892,11.43420952,1420.5,1420.4,0.19694703]
[1673623663308,5.566,1420.5,1420.4,0.19694703]
[1673623663763,7.9111,1420.5,1420.4,0.19694703]
[1673623663956,9.4841,1420.5,1419.8,0.01915957]
[1673623664322,1.573,1420.3,1419.8,0.5284]
[1673623664459,1.573,1420.3,1420.2,3.0]
[1673623664670,4.639,1420.5,1420.2,3.0]
[1673623664671,0.066,1420.5,1420.2,3.0]
[1673623665005,7.03895,1420.7,1420.2,3.0]
[1673623665214,3.0,1420.6,1420.2,4.574]
[1673623665420,3.066,1420.7,1420.2,1.574]
[1673623665628,43.7162152,1420.7,1420.4,3.0]
[1673623665826,43.7822152,1420.7,1420.4,3.0]
[1673623666152,0.06139,1420.6,1420.4,3.0]
[1673623666358,0.06139,1420.6,1420.5,1.587]
[1673623666704,0.06139,1420.6,1420.5,4.087]
[1673623666913,0.06139,1420.6,1420.5,4.6151]
[1673623667086,0.06139,1420.6,1420.5,2.1151]
[1673623667292,0.06139,1420.6,1420.5,1.8391]
[1673623667502,0.06139,1420.6,1420.4,3.54735957]
[1673623667717,0.06139,1420.6,1420.4,3.0]
[1673623668708,0.06139,1420.6,1420.5,1.8391]
[1673623669037,0.066,1421.2,1420.6,0.06029406]
[1673623669187,9.77289,1421.3,1420.6,15.62233331]
[1673623669188,0.06139,1421.1,1420.6,15.62233331]
[1673623669396,0.06139,1421.1,1421.0,3.0]
[1673623670346,0.066,1421.6,1421.1,2.5]
[1673623670607,16.5,1421.9,1421.3,2.707]
[1673623670821,0.5276,1421.8,1421.3,4.587]
[1673623671127,14.0,1421.7,1421.2,0.01915957]
[1673623671287,14.0,1421.5,1421.0,3.01915957]
[1673623671500,2.5,1421.4,1421.0,3.0]
[1673623671741,2.5,1421.4,1421.0,4.587]
[1673623671742,4.1066,1421.4,1421.0,4.587]
[1673623671950,14.066,1421.5,1421.0,4.587]
[1673623672200,14.066,1421.5,1421.1,1.587]
[1673623672407,14.066,1421.5,1421.2,4.575]
[1673623672721,0.066,1421.5,1421.2,4.575]
[1673623672931,0.066,1421.8,1421.4,4.581]
[1673623673270,0.066,1421.8,1421.5,1.587]
[1673623673271,3.60633272,1421.8,1421.5,1.587]
[1673623673487,2.5,1421.6,1421.4,9.16627806]
[1673623673653,6.10633272,1421.6,1421.4,6.16627806]
[1673623674004,5.40913272,1421.5,1421.4,6.16627806]
[1673623674214,5.47513272,1421.5,1421.4,6.16627806]
[1673623674431,23.97608099,1421.5,1421.4,6.16627806]
[1673623674743,38.04572099,1421.5,1421.4,5.54384744]
[1673623675106,38.04572099,1421.5,1421.4,0.01915957]
[1673623675107,31.01090099,1421.5,1421.4,0.01915957]
[1673623675316,31.01090099,1421.5,1420.9,7.287]
[1673623675317,9.97608099,1421.5,1420.9,7.287]
[1673623675528,9.97608099,1421.5,1421.2,3.0]
[1673623675529,0.066,1421.5,1421.2,3.0]
[1673623675791,17.0,1421.6,1421.2,3.0]
[1673623675950,6.67233272,1421.6,1421.2,3.0]
[1673623676164,6.67233272,1421.6,1421.4,3.0]
[1673623676165,0.066,1421.6,1421.4,3.0]
[1673623676421,21.3270399,1421.9,1421.5,1.585]
[1673623676579,21.3270399,1421.9,1421.4,3.0]
[1673623676580,3.60633272,1421.8,1421.4,3.01915957]
[1673623676791,3.60633272,1421.8,1421.4,3.0]
[1673623676792,4.13393272,1421.8,1421.4,3.0]
[1673623677054,3.60633272,1421.7,1421.4,4.529]
[1673623677221,3.60633272,1421.7,1421.6,2.95]
[1673623677572,7.62694,1421.8,1421.6,2.95]
[1673623677573,0.066,1421.8,1421.6,2.95]
[1673623677781,3.60633272,1421.8,1421.6,2.95]
[1673623678154,3.60633272,1421.7,1421.5,0.01915957]
[1673623678369,3.60633272,1421.6,1421.4,2.95]
[1673623678606,3.60633272,1421.5,1421.4,2.95]
[1673623678797,7.39502327,1421.6,1421.4,2.95]
[1673623678798,0.066,1421.6,1421.4,2.95]
[1673623679010,3.60633272,1421.5,1421.3,0.01915957]
[1673623679256,3.60633272,1421.4,1421.0,2.71615957]
[1673623679581,4.37940327,1421.5,1421.1,5.647]
[1673623679883,3.60633272,1421.4,1421.1,0.01915957]
[1673623680043,3.60633272,1421.4,1421.3,2.95]
[1673623680259,5.10839532,1421.4,1421.3,2.95]
[1673623680585,5.17439532,1421.4,1421.3,2.95]
[1673623681452,26.73750532,1421.4,1421.1,0.01915957]
[1673623681798,4.13413272,1421.3,1420.8,0.01915957]
[1673623681952,10.64287272,1421.2,1421.0,2.95]
[1673623682163,3.60633272,1421.1,1421.0,2.95]
[1673623682373,6.10633272,1421.1,1421.0,2.95]
[1673623682631,6.10633272,1421.1,1420.8,0.01915957]
[1673623682632,20.24593272,1421.1,1420.8,0.01915957]
[1673623682849,3.60633272,1421.0,1420.9,2.95]
[1673623683001,3.60633272,1421.0,1420.6,0.16182527]
[1673623683002,10.64362272,1421.0,1420.7,2.96185682]
[1673623683214,10.64362272,1421.0,1420.7,2.95]
[1673623683215,3.60633272,1420.9,1420.7,2.95]
[1673623683473,3.60633272,1420.8,1420.7,2.95]
[1673623684001,7.86633272,1420.8,1420.7,2.95]
[1673623684163,10.13318699,1420.8,1420.7,2.95]
[1673623684582,17.69946699,1420.8,1420.7,2.95]
[1673623684835,24.20974699,1420.8,1420.7,2.95]
[1673623685628,19.94974699,1420.8,1420.7,2.95]
[1673623685842,19.94974699,1420.8,1420.6,0.16182527]
[1673623685843,19.94974699,1420.8,1420.6,3.11182527]
[1673623686096,6.12940742,1420.7,1420.6,3.11182527]
[1673623686428,6.12940742,1420.7,1420.4,2.96185682]
[1673623686429,24.76296742,1420.7,1420.4,2.96185682]
[1673623686579,3.60633272,1420.5,1420.4,2.95]
[1673623686785,24.10566,1420.6,1420.4,2.95]
[1673623687042,1.8031,1420.5,1420.4,2.95]
[1673623687222,24.63337,1420.6,1420.4,2.95]
[1673623687443,3.60633272,1420.5,1420.4,2.95]
[1673623687655,0.066,1420.6,1420.4,2.95]
[1673623687868,3.60633272,1420.6,1420.4,2.95]
[1673623688048,0.066,1420.7,1420.4,2.95]
[1673623688432,7.03859,1420.8,1420.6,2.95]
[1673623688433,7.10459,1420.8,1420.6,2.95]
[1673623688567,14.67136,1420.8,1420.6,2.95]
[1673623689155,7.63259,1420.8,1420.6,2.95]
[1673623689722,3.60633272,1420.7,1420.6,2.95]
[1673623689939,17.68389272,1420.7,1420.6,2.95]
[1673623690150,17.68389272,1420.7,1420.5,2.95]
[1673623690151,17.74989272,1420.7,1420.5,2.95]
[1673623690501,10.64560272,1420.6,1420.5,2.95]
[1673623690688,0.066,1420.6,1420.5,2.95]
[1673623690881,7.1044,1420.8,1420.5,2.95]
[1673623691091,7.1044,1420.8,1420.5,2.9]
[1673623691092,3.60633272,1420.7,1420.5,2.9]
[1673623691354,7.1044,1420.8,1420.5,2.9]
[1673623691355,0.066,1420.8,1420.5,2.9]
[1673623691546,0.066,1421.0,1420.7,2.9]
[1673623691880,21.03635,1421.2,1420.5,9.68361]
[1673623691881,21.10235,1421.2,1420.6,7.05096682]
[1673623692037,17.151457,1421.2,1420.6,14.09023682]
[1673623692303,17.151457,1421.2,1420.9,2.9]
[1673623692516,3.0,1421.1,1420.9,2.86267248]
[1673623692726,0.066,1421.2,1420.9,2.86267248]
[1673623692991,0.066,1421.2,1420.8,7.05013682]
[1673623692992,0.066,1421.5,1420.8,9.13213682]
[1673623693308,21.9627487,1421.6,1421.4,2.86267248]
[1673623693459,0.3049487,1421.6,1421.4,2.86267248]
[1673623693674,14.0,1421.5,1421.4,2.86267248]
[1673623693988,14.066,1421.5,1421.2,2.8745293]
[1673623694335,14.066,1421.5,1421.2,2.86267248]
[1673623695091,0.066,1421.5,1421.4,2.86267248]
[1673623695249,0.2389487,1421.6,1421.4,2.86267248]
[1673623696093,0.2389487,1421.6,1421.4,9.89798248]
[1673623696297,0.2389487,1421.6,1421.5,2.5]
[1673623696759,0.2389487,1421.6,1421.4,19.5479493]
[1673623697311,0.2281599,1421.9,1421.5,2.5]
[1673623697504,0.2281599,1421.9,1421.8,2.86267248]
[1673623698087,0.2281599,1421.9,1421.8,9.89600248]
[1673623698344,5.99e-05,1421.9,1421.8,13.51419202]
[1673623698507,0.2389487,1422.2,1421.9,2.5]
[1673623698734,0.2281599,1422.5,1422.1,2.5]
[1673623699049,0.2281599,1422.5,1422.4,2.86267248]
[1673623699291,2.66018823,1422.8,1422.4,2.86267248]
[1673623699292,0.007,1422.8,1422.4,9.89304248]
[1673623699450,0.066,1423.0,1422.7,2.86267248]
[1673623699660,0.066,1423.0,1422.5,4.684]
[1673623699661,0.347449,1423.2,1422.6,0.01185682]
[1673623699914,14.0,1423.2,1422.7,2.6]
[1673623700240,2.5,1423.1,1422.9,2.86267248]
[1673623700398,14.066,1423.2,1422.9,2.57640524]
[1673623700814,14.066,1423.2,1422.8,0.01185682]
[1673623701065,14.0,1423.0,1422.7,2.57640524]
[1673623701288,3.0272,1422.9,1422.5,0.01185682]
[1673623701605,14.0,1422.8,1422.5,20.01067224]
[1673623701755,14.0,1422.8,1422.5,20.02252906]
[1673623701756,0.5273,1422.7,1422.5,20.02252906]
[1673623702179,0.066,1422.8,1422.6,2.34379894]
[1673623702429,14.066,1423.0,1422.6,2.34379894]
[1673623702634,1.5,1422.9,1422.6,2.34379894]
[1673623702866,0.5272,1422.9,1422.6,2.32512897]
[1673623703386,0.5272,1422.9,1422.5,20.02252906]
[1673623703618,0.5932,1423.1,1422.8,2.32512897]
[1673623703825,14.0,1423.0,1422.8,2.32512897]
[1673623703964,1.52114281,1423.0,1422.8,2.32512897]
[1673623704179,0.00242281,1423.0,1422.8,2.32512897]
[1673623704815,0.00242281,1423.0,1422.8,9.35323897]
[1673623705035,0.00242281,1423.0,1422.8,9.36509579]
[1673623705276,0.066,1423.3,1422.9,6.10633272]
[1673623705491,0.05974051,1423.0,1422.9,12.14853682]
[1673623705660,0.05974051,1423.0,1422.9,11.44646579]
[1673623706023,0.05974051,1423.0,1422.9,2.33698579]
[1673623706176,1.33474051,1423.0,1422.9,2.32512897]
[1673623706593,0.05974051,1423.0,1422.9,2.32512897]
[1673623707073,1.62671456,1423.0,1422.9,2.32512897]
[1673623707855,15.62671456,1423.0,1422.7,0.01185682]
[1673623708121,15.62671456,1423.0,1422.5,22.34765803]
[1673623708122,4.13353272,1422.9,1422.5,22.34765803]
[1673623708291,5.69620418,1422.9,1422.5,22.34765803]
[1673623708509,5.76220418,1422.9,1422.5,22.34765803]
[1673623708734,17.60633272,1422.8,1422.5,20.02252906]
[1673623708907,5.89426599,1422.7,1422.5,20.02252906]
[1673623709115,20.10633272,1422.6,1422.5,20.02252906]
[1673623709331,17.67233272,1422.6,1422.5,20.02252906]
[1673623709653,0.5933,1422.6,1422.5,20.02252906]
[1673623709870,3.60633272,1422.6,1422.5,20.02252906]
[1673623710288,0.066,1422.7,1422.5,20.02252906]
[1673623710609,3.5273,1422.8,1422.5,20.02252906]
[1673623710818,0.066,1422.9,1422.6,2.32512897]
[1673623711216,0.31571456,1423.0,1422.6,16.38378897]
[1673623711217,3.0,1423.0,1422.6,16.38378897]
[1673623711379,0.05974052,1422.9,1422.6,16.39564579]
[1673623711805,0.05974052,1422.9,1422.8,2.32512897]
[1673623711965,1.33474052,1422.9,1422.8,2.32512897]
[1673623712954,0.60633272,1422.8,1422.6,2.32512897]
[1673623713128,0.60633272,1422.8,1422.5,20.02252906]
[1673623713337,4.13363272,1422.7,1422.5,20.02252906]
[1673623713663,3.60633272,1422.6,1422.5,20.02252906]
[1673623713870,4.26969599,1422.6,1422.5,20.02252906]
[1673623714704,3.60633272,1422.6,1422.5,20.02252906]
[1673623715894,10.63571272,1422.6,1422.5,20.02252906]
[1673623716109,13.20171272,1422.6,1422.5,20.02252906]
[1673623716302,27.20171272,1422.6,1422.5,20.02252906]
[1673623716518,30.20171272,1422.6,1422.5,20.02252906]
[1673623716741,35.45774199,1422.6,1422.5,20.02252906]
[1673623716968,42.71712199,1422.6,1422.5,20.02252906]
[1673623717181,46.97712199,1422.6,1422.5,19.30622221]
[1673623717335,49.04812199,1422.6,1422.3,19.99486656]
[1673623717556,21.86633272,1422.4,1422.3,20.06086656]
[1673623717773,43.55084272,1422.4,1422.3,20.06086656]
[1673623717969,39.52084272,1422.4,1422.3,20.06086656]
[1673623718230,42.52084272,1422.4,1422.3,20.06086656]
[1673623718647,21.19973272,1422.4,1422.3,20.06086656]
[1673623719061,7.19973272,1422.4,1422.3,20.06086656]
[1673623719243,24.74026105,1422.4,1422.3,20.06086656]
[1673623719461,21.19973272,1422.4,1422.3,20.06086656]
[1673623719650,7.19973272,1422.4,1422.3,20.06086656]
[1673623719857,0.066,1422.4,1422.3,20.06086656]
[1673623720121,14.5934,1422.5,1422.3,20.06086656]
[1673623720278,3.60633272,1422.4,1422.3,20.06086656]
[1673623720493,0.066,1422.5,1422.3,20.06086656]
[1673623720819,14.5273,1422.6,1422.3,20.06086656]
[1673623721026,0.066,1422.6,1422.4,2.32512897]
[1673623721225,0.5273,1422.8,1422.4,2.32512897]
[1673623721433,4.13363272,1422.8,1422.4,2.32512897]
[1673623721698,3.60633272,1422.8,1422.4,2.32512897]
[1673623721867,47.26115792,1422.8,1422.4,2.32512897]
[1673623722080,3.67233272,1422.8,1422.4,2.32512897]
[1673623722290,14.65294052,1422.9,1422.4,9.35549897]
[1673623722564,0.12574052,1422.9,1422.7,2.32512897]
[1673623722732,0.05974052,1422.9,1422.7,2.22752177]
[1673623722895,3.60633272,1422.8,1422.7,2.22752177]
[1673623723113,3.60633272,1422.8,1422.5,2.29352177]
[1673623723114,18.67577304,1422.8,1422.5,2.29352177]
[1673623723366,3.60633272,1422.7,1422.5,2.22752177]
[1673623723951,3.60633272,1422.6,1422.5,2.22752177]
[1673623724372,0.066,1422.7,1422.4,2.22752177]
[1673623724634,0.066,1422.8,1422.4,2.22752177]
[1673623724793,3.05974052,1422.9,1422.6,2.22752177]
[1673623724794,0.05974052,1422.9,1422.6,2.22752177]
[1673623725674,0.05974052,1422.9,1422.8,2.22752177]
[1673623726206,7.09272,1423.2,1422.8,2.22752177]
[1673623726451,14.76901252,1423.1,1422.8,2.22752177]
[1673623726667,3.60633272,1423.0,1422.8,2.22752177]
[1673623727391,0.12574052,1423.1,1422.8,2.22752177]
[1673623727554,0.05974052,1423.1,1422.8,16.28430177]
[1673623727759,0.05974052,1423.1,1422.8,16.35030177]
[1673623727970,0.05974052,1423.1,1422.8,2.29352177]
[1673623728222,0.06174052,1423.1,1422.8,2.22752177]
[1673623728439,3.60633272,1423.0,1422.7,2.22752177]
[1673623728600,18.49416599,1422.9,1422.5,2.29352177]
[1673623728810,6.10633272,1422.8,1422.5,2.22752177]
[1673623729078,3.60633272,1422.7,1422.5,2.22752177]
[1673623731074,0.066,1422.8,1422.5,9.25725177]
[1673623731398,3.5932,1423.0,1422.5,2.29352177]
[1673623731722,17.60633272,1422.9,1422.5,2.22752177]
[1673623731862,6.10633272,1422.8,1422.5,2.22752177]
[1673623732067,6.17233272,1422.8,1422.5,2.22752177]
[1673623732561,3.60633272,1422.7,1422.5,2.22752177]
[1673623732753,4.22356599,1422.7,1422.5,2.10245093]
[1673623733334,3.60633272,1422.7,1422.5,2.10245093]
[1673623735247,0.066,1422.8,1422.5,9.13223093]
[1673623735459,3.0,1422.8,1422.5,2.16845093]
[1673623735670,0.066,1422.9,1422.5,9.13232093]
[1673623735859,3.0,1422.9,1422.6,3.41323209]
[1673623736204,3.0,1422.9,1422.7,7.02888]
[1673623736381,1.09595906,1423.0,1422.7,16.22621093]
[1673623736382,0.066,1423.0,1422.7,16.22621093]
[1673623736594,60.83487081,1423.3,1423.2,14.42783425]
[1673623736805,79.24052079,1423.3,1423.2,10.77320612]
[1673623737131,85.72527267,1423.3,1423.2,10.77320612]
[1673623737361,78.69935267,1423.3,1423.2,10.77320612]
[1673623737602,69.03455518,1423.3,1423.2,10.77320612]
[1673623737762,93.51224269,1423.3,1423.2,10.77320612]
[1673623737951,101.74224269,1423.3,1423.2,10.77320612]
[1673623738166,102.26891573,1423.3,1423.2,10.77320612]
[1673623739017,99.1175633,1423.3,1423.2,10.77320612]
[1673623739464,99.1175633,1423.3,1423.2,10.77120612]
[1673623739655,99.1175633,1423.3,1423.2,10.77320612]
[1673623740211,99.1175633,1423.3,1423.2,6.12192682]
[1673623740376,109.29490794,1423.3,1423.2,6.12192682]
[1673623740584,111.90872479,1423.3,1423.2,5.48886703]
[1673623740919,112.83411396,1423.3,1423.2,4.79772763]
[1673623741110,113.37692946,1423.3,1423.2,4.73172763]
[1673623741750,4.26,1423.0,1422.7,0.06]
[1673623742013,14.0,1422.8,1422.4,20.0515557]
[1673623742169,14.066,1422.8,1422.5,7.02946]
[1673623742379,14.066,1422.8,1422.5,7.09546]
[1673623742594,17.67233272,1422.8,1422.6,2.10245093]
[1673623742862,3.60633272,1422.7,1422.6,2.04639262]
[1673623743241,0.066,1422.8,1422.6,2.04639262]
[1673623743436,28.12111,1423.0,1422.6,2.04639262]
[1673623743681,3.60633272,1422.9,1422.6,9.07573262]
[1673623743888,3.60833272,1422.9,1422.6,9.13973262]
[1673623744116,14.066,1423.0,1422.6,9.14173262]
[1673623744285,14.066,1423.0,1422.6,23.20049262]
[1673623744498,14.066,1423.0,1422.7,9.52859]
[1673623744698,14.066,1423.0,1422.7,9.59459]
[1673623744911,14.066,1423.0,1422.7,16.62347]
[1673623745141,14.066,1423.0,1422.7,14.12347]
[1673623745344,3.60633272,1422.9,1422.7,0.066]
[1673623745554,10.63436272,1422.9,1422.6,2.11239262]
[1673623745800,3.60633272,1422.8,1422.6,2.04639262]
[1673623746067,3.60633272,1422.7,1422.6,2.04639262]
[1673623746324,3.60633272,1422.7,1422.5,2.04639262]
[1673623746511,14.5933,1422.8,1422.5,9.06682416]
[1673623746746,15.11666175,1422.8,1422.5,9.13282416]
[1673623747263,3.60633272,1422.7,1422.5,2.10305416]
[1673623747436,3.60633272,1422.7,1422.5,2.03705416]
[1673623747437,3.60633272,1422.6,1422.5,2.03705416]
[1673623747656,8.07955175,1422.7,1422.5,2.03705416]
[1673623747657,1.11666175,1422.7,1422.5,2.03705416]
[1673623747865,18.94170467,1422.8,1422.5,2.03705416]
[1673623748069,22.54803739,1422.8,1422.5,2.03705416]
[1673623748283,1.05066175,1422.7,1422.5,2.03705416]
[1673623748792,3.30546549,1422.7,1422.5,2.03705416]
[1673623749047,8.48757707,1422.7,1422.5,2.03705416]
[1673623749248,8.55357707,1422.7,1422.5,2.03705416]
[1673623749429,1.05066175,1422.6,1422.5,2.03705416]
[1673623749626,8.55357707,1422.7,1422.5,2.03705416]
[1673623749837,4.46169043,1422.6,1422.5,2.03705416]
[1673623750086,26.60049218,1422.6,1422.4,20.0515557]
[1673623750310,3.60633272,1422.5,1422.4,20.0515557]
[1673623750480,18.71673447,1422.5,1422.4,20.0515557]
[1673623750688,27.38838333,1422.5,1422.4,20.0515557]
[1673623751003,34.52782055,1422.5,1422.4,20.0515557]
[1673623751232,36.1062576,1422.5,1422.4,20.0515557]
[1673623751427,35.05522055,1422.5,1422.4,20.0515557]
[1673623751666,36.10623674,1422.5,1422.4,20.0515557]
[1673623752009,30.12591923,1422.5,1422.4,20.0515557]
[1673623752742,35.58001037,1422.5,1422.4,20.0515557]